[Event "MČR v rapid šachu družstev 2019"]
[Site "Teplice, Czech Republic"]
[Date "2019.09.15"]
[Round "7.25"]
[White "Brejnik, Gustav"]
[Black "Slampa, Jan"]
[Result "0-1"]
[TimeControl "15 min. + 5s"]
[WhiteElo "2109"]
[BlackElo "2166"]

1. d4 {[%clk 00:15:09]} {[%emt 00:23:56]} Nf6 {[%clk 00:15:07]} {[%emt
00:00:02]} 2. c4 {[%clk 00:15:13]} {[%emt 00:00:02]} g6 {[%clk 00:15:12]}
{[%emt 00:00:01]} 3. g3 {[%clk 00:15:17]} Bg7 {[%clk 00:15:08]} {[%emt
00:00:08]} 4. Bg2 {[%clk 00:15:20]} {[%emt 00:00:02]} O-O {[%clk 00:15:10]}
{[%emt 00:00:03]} 5. Nc3 {[%clk 00:15:24]} d6 {[%clk 00:15:12]} {[%emt
00:00:03]} 6. Nf3 {[%clk 00:15:27]} {[%emt 00:00:02]} c5 {[%clk 00:15:06]}
{[%emt 00:00:11]} 7. d5 {[%clk 00:15:30]} {[%emt 00:00:03]} e6 {[%clk
00:14:12]} {[%emt 00:00:59]} 8. O-O {[%clk 00:15:33]} {[%emt 00:00:02]} exd5
{[%clk 00:14:14]} {[%emt 00:00:03]} 9. cxd5 {[%clk 00:15:36]} {[%emt 00:00:02]}
Na6 {[%clk 00:13:11]} {[%emt 00:01:08]} 10. Bf4 {[%clk 00:15:09]} {[%emt
00:00:32]} Nc7 {[%clk 00:11:26]} {[%emt 00:01:50]} 11. a4 {[%clk 00:15:02]}
{[%emt 00:00:12]} Nh5 {[%clk 00:11:29]} {[%emt 00:00:02]} 12. Bg5 {[%clk
00:14:54]} {[%emt 00:00:13]} f6 {[%clk 00:10:56]} {[%emt 00:00:37]} 13. Bd2
{[%clk 00:14:46]} {[%emt 00:00:13]} f5 {[%clk 00:10:36]} {[%emt 00:00:26]} 14.
Bg5 {[%clk 00:14:14]} {[%emt 00:00:36]} Qd7 {[%clk 00:10:21]} {[%emt 00:00:21]}
15. Qd2 {[%clk 00:14:00]} {[%emt 00:00:19]} b6 {[%clk 00:10:02]} {[%emt
00:00:24]} 16. Rfe1 {[%clk 00:13:46]} {[%emt 00:00:19]} Bb7 {[%clk 00:09:51]}
{[%emt 00:00:16]} 17. e4 {[%clk 00:11:00]} {[%emt 00:02:51]} fxe4 {[%clk
00:08:26]} {[%emt 00:01:30]} 18. Rxe4 {[%clk 00:10:38]} {[%emt 00:00:27]} Nf6
{[%clk 00:08:16]} {[%emt 00:00:14]} 19. Bxf6 {[%clk 00:10:19]} {[%emt
00:00:24]} Bxf6 {[%clk 00:07:55]} {[%emt 00:00:27]} 20. Rae1 {[%clk 00:10:05]}
{[%emt 00:00:19]} Rae8 {[%clk 00:07:19]} {[%emt 00:00:39]} 21. Qh6 {[%clk
00:08:24]} {[%emt 00:01:47]} Bxc3 {[%clk 00:05:49]} {[%emt 00:01:35]} 22. bxc3
{[%clk 00:07:02]} {[%emt 00:01:27]} Rxe4 {[%clk 00:05:53]} {[%emt 00:00:02]} 23.
Rxe4 {[%clk 00:07:04]} {[%emt 00:00:04]} Bxd5 {[%clk 00:05:40]} {[%emt
00:00:17]} 24. Re3 {[%clk 00:05:52]} {[%emt 00:01:17]} Qg7 {[%clk 00:04:35]}
{[%emt 00:01:10]} 25. Qh4 {[%clk 00:05:41]} {[%emt 00:00:16]} Qf6 {[%clk
00:04:19]} {[%emt 00:00:20]} 26. Qh6 {[%clk 00:05:05]} {[%emt 00:00:41]} Ne6
{[%clk 00:04:09]} {[%emt 00:00:16]} 27. h4 {[%clk 00:04:14]} {[%emt 00:00:56]}
Qg7 {[%clk 00:03:22]} {[%emt 00:00:53]} 28. Qxg7+ {[%clk 00:04:17]} Kxg7 {[%clk
00:03:03]} {[%emt 00:00:24]} 29. Ng5 {[%clk 00:04:19]} {[%emt 00:00:03]} Nxg5
{[%clk 00:02:38]} {[%emt 00:00:29]} 30. Bxd5 {[%clk 00:04:13]} {[%emt
00:00:12]} Nh3+ {[%clk 00:02:39]} {[%emt 00:00:04]} 31. Kg2 {[%clk 00:04:07]}
{[%emt 00:00:10]} Nxf2 {[%clk 00:01:58]} {[%emt 00:00:47]} 32. Re7+ {[%clk
00:04:10]} {[%emt 00:00:03]} Kh6 {[%clk 00:01:39]} {[%emt 00:00:24]} 33. Rxa7
{[%clk 00:04:10]} {[%emt 00:00:04]} Nd1 {[%clk 00:01:34]} {[%emt 00:00:10]} 34.
g4 {[%clk 00:03:44]} {[%emt 00:00:31]} Ne3+ {[%clk 00:01:36]} {[%emt 00:00:01]}
35. Kh3 {[%clk 00:03:38]} {[%emt 00:00:13]} g5 {[%clk 00:00:18]} {[%emt
00:01:23]} 36. Be4 {[%clk 00:03:07]} {[%emt 00:00:35]} Rh8 {[%clk 00:00:18]}
{[%emt 00:00:06]} 37. Rd7 {[%clk 00:02:50]} {[%emt 00:00:21]} d5 {[%clk
00:00:15]} {[%emt 00:00:09]} 38. Bxd5 {[%clk 00:02:29]} {[%emt 00:00:26]} Nxd5
{[%clk 00:00:13]} {[%emt 00:00:07]} 39. Rxd5 {[%clk 00:01:44]} {[%emt
00:00:49]} gxh4 {[%clk 00:00:09]} {[%emt 00:00:10]} 40. Rd6+ {[%clk 00:01:33]}
{[%emt 00:00:16]} Kg5 {[%clk 00:00:13]} {[%emt 00:00:01]} 41. Rxb6 {[%clk
00:01:36]} {[%emt 00:00:02]} Rd8 {[%clk 00:00:15]} {[%emt 00:00:03]} 42. c4
{[%clk 00:00:57]} {[%emt 00:00:44]} Rd3+ {[%clk 00:00:19]} 43. Kg2 {[%clk
00:01:01]} Rc3 {[%clk 00:00:15]} {[%emt 00:00:09]} 44. a5 {[%clk 00:00:46]}
{[%emt 00:00:20]} Kxg4 {[%clk 00:00:14]} {[%emt 00:00:06]} 45. a6 {[%clk
00:00:33]} {[%emt 00:00:18]} Rxc4 {[%clk 00:00:15]} {[%emt 00:00:05]} 46. a7
{[%clk 00:00:37]} Rc2+ {[%clk 00:00:19]} 47. Kg1 {[%clk 00:00:39]} {[%emt
00:00:02]} Ra2 {[%clk 00:00:23]} {[%emt 00:00:01]} 48. Rc6 {[%clk 00:00:17]}
{[%emt 00:00:28]} Kg3 {[%clk 00:00:18]} {[%emt 00:00:10]} 49. Kf1 {[%clk
00:00:17]} {[%emt 00:00:04]} Ra1+ {[%clk 00:00:16]} {[%emt 00:00:08]} 50. Ke2
{[%clk 00:00:21]} {[%emt 00:00:01]} Rxa7 {[%clk 00:00:19]} {[%emt 00:00:01]} 51.
Rxc5 {[%clk 00:00:24]} {[%emt 00:00:03]} Rf7 {[%clk 00:00:22]} {[%emt
00:00:03]} 52. Rg5+ {[%clk 00:00:21]} {[%emt 00:00:07]} Kh3 {[%clk 00:00:22]}
{[%emt 00:00:04]} 53. Ke3 {[%clk 00:00:18]} {[%emt 00:00:09]} Rf6 {[%clk
00:00:24]} {[%emt 00:00:03]} 54. Rg7 {[%clk 00:00:09]} {[%emt 00:00:14]} Rg6
{[%clk 00:00:20]} {[%emt 00:00:09]} 55. Rxh7 {[%clk 00:00:13]} {[%emt
00:00:01]} Kg3 {[%clk 00:00:23]} {[%emt 00:00:02]} 56. Rf7 {[%clk 00:00:10]}
{[%emt 00:00:09]} Re6+ {[%clk 00:00:26]} 57. Kd4 {[%emt 00:00:04]} 0-1

[Event "MČR v rapid šachu družstev 2019"]
[Site "Teplice, Czech Republic"]
[Date "2019.09.15"]
[Round "7.27"]
[White "Sura, Jaroslav"]
[Black "Nudcenko, Karel"]
[Result "0-1"]
[TimeControl "15 min. + 5s"]
[WhiteElo "2025"]
[BlackElo "2110"]

1. e4 {[%clk 00:15:09]} e6 {[%clk 00:15:07]} {[%emt 00:00:03]} 2. d4 {[%clk
00:15:12]} {[%emt 00:00:02]} d5 {[%clk 00:15:11]} {[%emt 00:00:01]} 3. Nc3
{[%clk 00:15:15]} {[%emt 00:00:02]} Bb4 {[%clk 00:15:11]} {[%emt 00:00:05]} 4.
exd5 {[%clk 00:15:15]} {[%emt 00:00:05]} exd5 {[%clk 00:15:08]} {[%emt
00:00:08]} 5. a3 {[%clk 00:15:14]} {[%emt 00:00:06]} Be7 {[%clk 00:14:53]}
{[%emt 00:00:20]} 6. Bd3 {[%clk 00:14:49]} {[%emt 00:00:30]} Nf6 {[%clk
00:14:55]} {[%emt 00:00:04]} 7. Nge2 {[%clk 00:14:32]} {[%emt 00:00:21]} O-O
{[%clk 00:14:35]} {[%emt 00:00:26]} 8. Bf4 {[%clk 00:14:12]} {[%emt 00:00:24]}
c6 {[%clk 00:14:26]} {[%emt 00:00:15]} 9. Qd2 {[%clk 00:13:52]} {[%emt
00:00:24]} Re8 {[%clk 00:14:28]} {[%emt 00:00:04]} 10. f3 {[%clk 00:13:32]}
{[%emt 00:00:23]} b5 {[%clk 00:14:20]} {[%emt 00:00:14]} 11. g4 {[%clk
00:13:24]} {[%emt 00:00:14]} a5 {[%clk 00:14:07]} {[%emt 00:00:17]} 12. h4
{[%clk 00:13:20]} {[%emt 00:00:09]} b4 {[%clk 00:14:08]} {[%emt 00:00:05]} 13.
axb4 {[%clk 00:12:55]} {[%emt 00:00:30]} Bxb4 {[%clk 00:14:07]} {[%emt
00:00:05]} 14. h5 {[%clk 00:12:47]} {[%emt 00:00:13]} Ba6 {[%clk 00:13:56]}
{[%emt 00:00:17]} 15. g5 {[%clk 00:12:40]} {[%emt 00:00:12]} Bxd3 {[%clk
00:13:40]} {[%emt 00:00:21]} 16. Qxd3 {[%clk 00:12:21]} {[%emt 00:00:24]} Nfd7
{[%clk 00:13:25]} {[%emt 00:00:20]} 17. g6 {[%clk 00:12:02]} {[%emt 00:00:24]}
Nf8 {[%clk 00:12:02]} {[%emt 00:01:27]} 18. gxf7+ {[%clk 00:11:05]} {[%emt
00:01:02]} Kxf7 {[%clk 00:12:05]} {[%emt 00:00:02]} 19. Be5 {[%clk 00:11:06]}
{[%emt 00:00:05]} Nbd7 {[%clk 00:11:40]} {[%emt 00:00:29]} 20. Bf4 {[%clk
00:10:05]} {[%emt 00:01:06]} Qf6 {[%clk 00:11:01]} {[%emt 00:00:44]} 21. O-O-O
{[%clk 00:08:41]} {[%emt 00:01:29]} Bxc3 {[%clk 00:10:53]} {[%emt 00:00:13]} 22.
bxc3 {[%clk 00:07:52]} {[%emt 00:00:54]} Rxe2 {[%clk 00:10:55]} {[%emt
00:00:03]} 23. Qxe2 {[%clk 00:07:47]} {[%emt 00:00:10]} Qxf4+ {[%clk 00:10:55]}
{[%emt 00:00:05]} 24. Kb2 {[%clk 00:07:10]} {[%emt 00:00:42]} Nb6 {[%clk
00:10:27]} {[%emt 00:00:33]} 25. Rde1 {[%clk 00:06:02]} {[%emt 00:01:13]} Nc4+
{[%clk 00:10:21]} {[%emt 00:00:10]} 26. Kb3 {[%clk 00:04:20]} {[%emt 00:01:48]}
Qb8+ {[%clk 00:10:10]} {[%emt 00:00:16]} 27. Ka4 {[%clk 00:04:05]} {[%emt
00:00:20]} Qd6 {[%emt 00:00:10]} 28. Kb3 {[%emt 00:00:08]} Rb8+ {[%emt
00:00:03]} 29. Ra1 Rb4+ {[%emt 00:00:01]} 30. Ka4 0-1

[Event "MČR v rapid šachu družstev 2019"]
[Site "Teplice, Czech Republic"]
[Date "2019.09.15"]
[Round "7.28"]
[White "Tichy, Lukas"]
[Black "Pospichal, Michael"]
[Result "1-0"]
[TimeControl "15 min. + 5s"]
[WhiteElo "1869"]
[BlackElo "1756"]

1. e4 {[%clk 00:15:08]} {[%emt 00:00:01]} c6 {[%clk 00:15:10]} 2. Nc3 {[%clk
00:15:04]} {[%emt 00:00:10]} d5 {[%clk 00:15:10]} {[%emt 00:00:04]} 3. Nf3
{[%clk 00:15:07]} {[%emt 00:00:02]} dxe4 {[%clk 00:14:59]} {[%emt 00:00:16]} 4.
Nxe4 {[%clk 00:15:10]} {[%emt 00:00:02]} Bf5 {[%clk 00:15:04]} 5. Ng3 {[%clk
00:14:58]} {[%emt 00:00:18]} Bg6 {[%clk 00:15:07]} {[%emt 00:00:02]} 6. h4
{[%clk 00:14:29]} {[%emt 00:00:34]} h6 {[%clk 00:15:10]} {[%emt 00:00:02]} 7.
Ne5 {[%clk 00:14:12]} {[%emt 00:00:22]} Bh7 {[%clk 00:13:51]} {[%emt 00:01:24]}
8. Bc4 {[%clk 00:12:48]} {[%emt 00:01:28]} e6 {[%clk 00:12:59]} {[%emt
00:00:58]} 9. O-O {[%clk 00:11:44]} {[%emt 00:01:08]} Bd6 {[%clk 00:12:07]}
{[%emt 00:00:57]} 10. Qe2 {[%clk 00:11:10]} {[%emt 00:00:40]} Bxe5 {[%clk
00:10:13]} {[%emt 00:01:59]} 11. Qxe5 {[%clk 00:11:12]} {[%emt 00:00:02]} Nf6
{[%clk 00:10:09]} {[%emt 00:00:10]} 12. d3 {[%clk 00:08:57]} {[%emt 00:02:19]}
Nbd7 {[%clk 00:10:03]} {[%emt 00:00:11]} 13. Qd6 {[%clk 00:08:50]} {[%emt
00:00:10]} Nb6 {[%clk 00:08:46]} {[%emt 00:01:23]} 14. Qxd8+ {[%clk 00:08:17]}
{[%emt 00:00:39]} Rxd8 {[%clk 00:08:48]} {[%emt 00:00:03]} 15. Bb3 {[%clk
00:07:55]} {[%emt 00:00:27]} O-O {[%clk 00:08:29]} {[%emt 00:00:25]} 16. Be3
{[%clk 00:07:56]} {[%emt 00:00:03]} Nfd5 {[%clk 00:08:12]} {[%emt 00:00:22]} 17.
Bc5 {[%clk 00:07:43]} {[%emt 00:00:18]} Rfe8 {[%clk 00:07:56]} {[%emt
00:00:22]} 18. Ne4 {[%clk 00:07:42]} {[%emt 00:00:06]} Bxe4 {[%clk 00:07:29]}
{[%emt 00:00:32]} 19. dxe4 {[%clk 00:07:46]} Nf4 {[%clk 00:06:40]} {[%emt
00:00:52]} 20. Rad1 {[%clk 00:06:50]} {[%emt 00:01:03]} Ng6 {[%clk 00:04:41]}
{[%emt 00:02:03]} 21. g3 {[%clk 00:06:15]} {[%emt 00:00:40]} Ne5 {[%clk
00:04:27]} {[%emt 00:00:19]} 22. Bxb6 {[%clk 00:04:31]} {[%emt 00:01:50]} axb6
{[%clk 00:04:29]} {[%emt 00:00:03]} 23. f4 {[%clk 00:04:32]} {[%emt 00:00:04]}
Ng4 {[%clk 00:04:04]} {[%emt 00:00:30]} 24. Rfe1 {[%clk 00:03:40]} {[%emt
00:00:56]} Kf8 {[%clk 00:03:51]} {[%emt 00:00:19]} 25. Rd3 {[%clk 00:03:28]}
{[%emt 00:00:16]} Rxd3 {[%clk 00:03:38]} {[%emt 00:00:18]} 26. cxd3 {[%clk
00:03:32]} {[%emt 00:00:01]} Rd8 {[%clk 00:03:42]} 27. Bc2 {[%clk 00:03:25]}
{[%emt 00:00:10]} e5 {[%clk 00:03:16]} {[%emt 00:00:33]} 28. Kg2 {[%clk
00:03:10]} {[%emt 00:00:21]} Rd4 {[%clk 00:03:05]} {[%emt 00:00:15]} 29. Kf3
{[%clk 00:02:46]} {[%emt 00:00:28]} h5 {[%clk 00:02:42]} {[%emt 00:00:30]} 30.
fxe5 {[%clk 00:02:18]} {[%emt 00:00:32]} Nxe5+ {[%clk 00:02:36]} {[%emt
00:00:11]} 31. Ke3 {[%clk 00:02:20]} {[%emt 00:00:03]} c5 {[%clk 00:02:28]}
{[%emt 00:00:13]} 32. Rf1 {[%clk 00:01:53]} {[%emt 00:00:32]} g6 {[%clk
00:01:59]} {[%emt 00:00:34]} 33. Rd1 {[%clk 00:01:19]} {[%emt 00:00:39]} Ke7
{[%clk 00:01:48]} {[%emt 00:00:16]} 34. Kf4 {[%clk 00:01:09]} {[%emt 00:00:14]}
f6 {[%clk 00:01:39]} {[%emt 00:00:15]} 35. Ke3 {[%clk 00:00:56]} {[%emt
00:00:19]} Kd6 {[%clk 00:01:28]} {[%emt 00:00:16]} 36. Rd2 {[%clk 00:00:55]}
{[%emt 00:00:05]} b5 {[%clk 00:00:40]} {[%emt 00:00:54]} 37. Bd1 {[%clk
00:00:44]} {[%emt 00:00:16]} c4 {[%clk 00:00:20]} {[%emt 00:00:25]} 38. Kxd4
{[%clk 00:00:45]} {[%emt 00:00:03]} cxd3 {[%clk 00:00:19]} {[%emt 00:00:07]} 39.
Rxd3 {[%clk 00:00:38]} {[%emt 00:00:12]} Nxd3 {[%clk 00:00:20]} {[%emt
00:00:04]} 40. Kxd3 {[%clk 00:00:41]} Ke5 {[%clk 00:00:24]} {[%emt 00:00:01]}
41. Ke3 {[%clk 00:00:37]} {[%emt 00:00:10]} f5 {[%clk 00:00:17]} {[%emt
00:00:12]} 42. Bc2 {[%clk 00:00:39]} {[%emt 00:00:02]} fxe4 43. Bxe4 {[%clk
00:00:42]} 1-0

[Event "MČR v rapid šachu družstev 2019"]
[Site "Teplice, Czech Republic"]
[Date "2019.09.15"]
[Round "8.2"]
[White "Zeman, Matyas"]
[Black "Kociscak, Jiri"]
[Result "1/2-1/2"]
[TimeControl "15 min. + 5s"]
[WhiteElo "2247"]
[BlackElo "2410"]

1. e4 {[%clk 00:15:08]} e5 {[%clk 00:15:06]} {[%emt 00:00:04]} 2. Nf3 {[%clk
00:15:10]} {[%emt 00:00:03]} Nc6 {[%clk 00:15:09]} {[%emt 00:00:03]} 3. Bc4
{[%clk 00:15:12]} {[%emt 00:00:03]} Nf6 {[%clk 00:15:11]} {[%emt 00:00:03]} 4.
d3 {[%clk 00:15:13]} {[%emt 00:00:04]} Be7 {[%clk 00:15:15]} {[%emt 00:00:02]}
5. O-O {[%clk 00:15:15]} {[%emt 00:00:03]} O-O {[%clk 00:15:16]} {[%emt
00:00:04]} 6. Re1 {[%clk 00:15:13]} {[%emt 00:00:06]} d6 {[%clk 00:15:19]}
{[%emt 00:00:02]} 7. h3 {[%clk 00:14:58]} {[%emt 00:00:20]} Na5 {[%clk
00:15:21]} {[%emt 00:00:02]} 8. c3 {[%clk 00:14:55]} {[%emt 00:00:08]} c6
{[%clk 00:15:22]} {[%emt 00:00:05]} 9. Nbd2 {[%clk 00:14:46]} {[%emt 00:00:14]}
h6 {[%clk 00:15:08]} {[%emt 00:00:19]} 10. b4 {[%clk 00:14:38]} {[%emt
00:00:13]} Nxc4 {[%clk 00:15:11]} {[%emt 00:00:03]} 11. dxc4 {[%clk 00:14:39]}
{[%emt 00:00:03]} Be6 {[%clk 00:15:11]} {[%emt 00:00:04]} 12. Qe2 {[%clk
00:14:25]} {[%emt 00:00:20]} Qc7 {[%clk 00:15:06]} {[%emt 00:00:10]} 13. Bb2
{[%clk 00:13:41]} {[%emt 00:00:49]} a6 {[%clk 00:15:05]} {[%emt 00:00:06]} 14.
a4 {[%clk 00:13:33]} {[%emt 00:00:13]} Nh5 {[%clk 00:14:50]} {[%emt 00:00:19]}
15. Nd4 {[%clk 00:07:54]} {[%emt 00:05:44]} Nf4 {[%clk 00:14:41]} {[%emt
00:00:14]} 1/2-1/2

[Event "MČR v rapid šachu družstev 2019"]
[Site "Teplice, Czech Republic"]
[Date "2019.09.15"]
[Round "8.5"]
[White "Bernasek, Jan"]
[Black "Formanek, Martin"]
[Result "1-0"]
[TimeControl "15 min. + 5s"]
[WhiteElo "2496"]
[BlackElo "2185"]

1. d4 {[%clk 00:15:07]} {[%emt 00:00:02]} Nf6 {[%clk 00:15:08]} {[%emt
00:00:03]} 2. c4 {[%clk 00:15:11]} {[%emt 00:00:01]} g6 {[%clk 00:15:12]}
{[%emt 00:00:01]} 3. Nc3 {[%clk 00:15:15]} Bg7 {[%clk 00:15:16]} {[%emt
00:00:02]} 4. e4 {[%clk 00:15:18]} {[%emt 00:00:02]} d6 {[%clk 00:15:20]}
{[%emt 00:00:01]} 5. Nf3 {[%clk 00:15:16]} {[%emt 00:00:06]} O-O {[%clk
00:15:23]} {[%emt 00:00:03]} 6. h3 {[%clk 00:15:20]} {[%emt 00:00:01]} a6
{[%clk 00:15:11]} {[%emt 00:00:17]} 7. a4 {[%clk 00:15:04]} {[%emt 00:00:22]}
Nc6 {[%clk 00:14:54]} {[%emt 00:00:21]} 8. Be2 {[%clk 00:14:00]} {[%emt
00:01:08]} Nd7 {[%clk 00:14:10]} {[%emt 00:00:49]} 9. Be3 {[%clk 00:13:58]}
{[%emt 00:00:07]} Nb4 {[%clk 00:13:27]} {[%emt 00:00:48]} 10. Nd5 {[%clk
00:13:08]} {[%emt 00:00:55]} Nxd5 {[%clk 00:13:18]} {[%emt 00:00:14]} 11. cxd5
{[%clk 00:13:11]} {[%emt 00:00:02]} c6 {[%clk 00:13:16]} {[%emt 00:00:07]} 12.
dxc6 {[%clk 00:13:01]} {[%emt 00:00:14]} bxc6 {[%clk 00:13:20]} {[%emt
00:00:01]} 13. O-O {[%clk 00:12:47]} {[%emt 00:00:18]} Rb8 {[%clk 00:13:11]}
{[%emt 00:00:15]} 14. Qc2 {[%clk 00:12:43]} {[%emt 00:00:09]} c5 {[%clk
00:13:11]} {[%emt 00:00:05]} 15. Rab1 {[%clk 00:12:35]} {[%emt 00:00:13]} Qa5
{[%clk 00:12:33]} {[%emt 00:00:44]} 16. Rfd1 {[%clk 00:12:14]} {[%emt
00:00:25]} Bb7 {[%clk 00:11:51]} {[%emt 00:00:48]} 17. dxc5 {[%clk 00:12:13]}
{[%emt 00:00:06]} Nxc5 {[%clk 00:11:52]} {[%emt 00:00:03]} 18. Bxc5 {[%clk
00:11:31]} {[%emt 00:00:46]} dxc5 {[%clk 00:11:54]} {[%emt 00:00:03]} 19. Bc4
{[%clk 00:11:14]} {[%emt 00:00:22]} Bc6 {[%clk 00:11:33]} {[%emt 00:00:27]} 20.
b3 {[%clk 00:11:17]} {[%emt 00:00:02]} Rfd8 {[%clk 00:11:28]} {[%emt 00:00:10]}
21. Bxf7+ {[%clk 00:08:49]} {[%emt 00:02:33]} Kxf7 {[%clk 00:11:31]} {[%emt
00:00:02]} 22. Qc4+ {[%clk 00:08:54]} {[%emt 00:00:01]} Ke8 {[%clk 00:08:21]}
{[%emt 00:03:14]} 23. Qg8+ {[%clk 00:08:56]} {[%emt 00:00:02]} Bf8 {[%clk
00:08:25]} {[%emt 00:00:02]} 24. Ne5 {[%clk 00:08:43]} {[%emt 00:00:17]} 1-0

[Event "MČR v rapid šachu družstev 2019"]
[Site "Teplice, Czech Republic"]
[Date "2019.09.15"]
[Round "8.6"]
[White "Dvorak, Jan"]
[Black "Cernousek, Lukas"]
[Result "1/2-1/2"]
[TimeControl "15 min. + 5s"]
[WhiteElo "2211"]
[BlackElo "2478"]

1. c4 {[%clk 00:15:09]} e5 {[%clk 00:15:05]} {[%emt 00:00:05]} 2. Nc3 {[%clk
00:15:12]} {[%emt 00:00:02]} Nf6 {[%clk 00:15:08]} {[%emt 00:00:01]} 3. g3
{[%clk 00:15:17]} d5 {[%clk 00:15:12]} 4. cxd5 {[%clk 00:15:20]} {[%emt
00:00:04]} Nxd5 {[%clk 00:15:16]} 5. Bg2 {[%clk 00:15:24]} {[%emt 00:00:01]}
Nb6 {[%clk 00:15:20]} {[%emt 00:00:01]} 6. d3 {[%clk 00:15:24]} {[%emt
00:00:05]} Be7 {[%clk 00:15:23]} {[%emt 00:00:02]} 7. Nf3 {[%clk 00:15:28]}
{[%emt 00:00:01]} Nc6 {[%clk 00:15:27]} {[%emt 00:00:01]} 8. O-O {[%clk
00:15:31]} {[%emt 00:00:03]} O-O {[%clk 00:15:30]} {[%emt 00:00:01]} 9. Be3
{[%clk 00:15:23]} {[%emt 00:00:13]} Re8 {[%clk 00:15:33]} {[%emt 00:00:02]} 10.
Rc1 {[%clk 00:15:23]} {[%emt 00:00:05]} Bf8 {[%clk 00:15:36]} {[%emt 00:00:02]}
11. Na4 {[%clk 00:14:29]} {[%emt 00:01:00]} Nd4 {[%clk 00:13:04]} {[%emt
00:02:38]} 12. Bxd4 {[%clk 00:13:31]} {[%emt 00:01:03]} exd4 {[%clk 00:13:08]}
13. Nc5 {[%clk 00:13:16]} {[%emt 00:00:20]} a5 {[%clk 00:11:07]} {[%emt
00:02:06]} 14. Nb3 {[%emt 00:01:19]} g5 {[%clk 00:11:09]} 15. h3 {[%clk
00:10:00]} {[%emt 00:02:09]} Bg7 {[%clk 00:11:03]} {[%emt 00:00:11]} 16. Qc2
{[%clk 00:09:50]} {[%emt 00:00:16]} a4 {[%clk 00:07:57]} {[%emt 00:03:10]} 17.
Nbd2 {[%clk 00:09:54]} {[%emt 00:00:01]} Nd5 {[%clk 00:05:40]} {[%emt
00:02:22]} 18. Ne4 {[%clk 00:08:40]} {[%emt 00:01:19]} h6 {[%clk 00:05:34]}
{[%emt 00:00:11]} 19. Qc4 {[%clk 00:07:46]} {[%emt 00:00:59]} Re7 {[%emt
00:01:57]} 20. Qc5 {[%emt 00:00:16]} 1/2-1/2

[Event "MČR v rapid šachu družstev 2019"]
[Site "Teplice, Czech Republic"]
[Date "2019.09.15"]
[Round "8.7"]
[White "Vrbata, Zbynek"]
[Black "Chmel, Kristian"]
[Result "1-0"]
[TimeControl "15 min. + 5s"]
[WhiteElo "2376"]
[BlackElo "2129"]

1. d4 {[%clk 00:15:08]} {[%emt 00:00:01]} Nf6 {[%clk 00:15:09]} {[%emt
00:00:01]} 2. c4 {[%clk 00:15:11]} {[%emt 00:00:02]} g6 {[%clk 00:15:12]}
{[%emt 00:00:02]} 3. f3 {[%clk 00:15:14]} {[%emt 00:00:03]} d5 {[%clk
00:15:13]} {[%emt 00:00:05]} 4. cxd5 {[%clk 00:15:15]} {[%emt 00:00:03]} Nxd5
{[%clk 00:15:16]} {[%emt 00:00:02]} 5. e4 {[%clk 00:15:18]} {[%emt 00:00:01]}
Nb6 {[%clk 00:15:18]} {[%emt 00:00:04]} 6. Nc3 {[%clk 00:15:21]} {[%emt
00:00:02]} Bg7 {[%clk 00:15:21]} {[%emt 00:00:02]} 7. Be3 {[%clk 00:15:24]}
{[%emt 00:00:02]} O-O {[%clk 00:15:20]} {[%emt 00:00:06]} 8. Qd2 {[%clk
00:15:26]} {[%emt 00:00:03]} Nc6 {[%clk 00:15:18]} {[%emt 00:00:07]} 9. O-O-O
{[%clk 00:15:24]} {[%emt 00:00:07]} e5 {[%clk 00:15:18]} {[%emt 00:00:05]} 10.
d5 {[%clk 00:15:19]} {[%emt 00:00:10]} Nd4 {[%clk 00:15:22]} {[%emt 00:00:02]}
11. f4 {[%clk 00:15:19]} {[%emt 00:00:05]} c5 {[%clk 00:15:07]} {[%emt
00:00:20]} 12. fxe5 {[%clk 00:14:59]} {[%emt 00:00:25]} Bxe5 {[%clk 00:15:00]}
{[%emt 00:00:12]} 13. Nf3 {[%clk 00:15:02]} {[%emt 00:00:01]} Nxf3 {[%clk
00:14:59]} {[%emt 00:00:07]} 14. gxf3 {[%clk 00:15:05]} {[%emt 00:00:01]} Nd7
{[%clk 00:12:28]} {[%emt 00:02:36]} 15. f4 {[%clk 00:14:24]} {[%emt 00:00:46]}
Bg7 {[%clk 00:12:10]} {[%emt 00:00:24]} 16. e5 {[%clk 00:13:56]} {[%emt
00:00:33]} b5 {[%clk 00:10:45]} {[%emt 00:01:30]} 17. d6 {[%clk 00:11:30]}
{[%emt 00:02:30]} b4 {[%clk 00:10:09]} {[%emt 00:00:41]} 18. Nd5 {[%clk
00:11:33]} {[%emt 00:00:02]} Qa5 {[%clk 00:10:11]} {[%emt 00:00:03]} 19. Kb1
{[%clk 00:11:14]} {[%emt 00:00:24]} Nb6 {[%clk 00:08:54]} {[%emt 00:01:22]} 20.
Ne7+ {[%clk 00:11:17]} {[%emt 00:00:01]} Kh8 {[%clk 00:08:58]} {[%emt
00:00:02]} 21. h4 {[%clk 00:11:19]} {[%emt 00:00:03]} h5 {[%clk 00:08:31]}
{[%emt 00:00:32]} 22. f5 {[%clk 00:08:36]} {[%emt 00:02:48]} Bxe5 {[%clk
00:05:14]} {[%emt 00:03:23]} 23. Bd4 {[%clk 00:08:13]} {[%emt 00:00:27]} Bxf5+
{[%clk 00:04:18]} {[%emt 00:01:01]} 24. Nxf5 {[%clk 00:07:03]} {[%emt
00:01:14]} 1-0